bitfinex/quotes_ETHUSD_20250905
["timestamp","ask_amount","ask_price","bid_price","bid_amount"]
[1757101573137,0.001,4326.5,4326.4,9.38921882]
[1757101573647,0.292,4326.5,4326.4,9.29659053]
[1757101573946,0.001,4326.5,4326.4,9.29659053]
[1757101577236,0.001,4326.5,4326.4,9.60899053]
[1757101577432,0.001,4326.5,4326.4,11.2722976]
[1757101577645,0.001,4326.5,4326.4,11.7575976]
[1757101578050,0.001,4326.5,4326.4,11.85021945]
[1757101578777,1e-08,4326.8,4326.7,2.31123026]
[1757101578945,1e-08,4326.8,4326.7,16.84186533]
[1757101579151,1e-08,4326.8,4326.7,20.461561]
[1757101579574,1e-08,4326.8,4326.7,20.73003441]
[1757101580078,0.001,4327.4,4326.7,20.73003441]
[1757101580079,0.001,4327.4,4326.8,3.0]
[1757101580281,0.001,4327.4,4327.3,9.94943257]
[1757101580442,0.025,4327.8,4327.7,2.31069621]
[1757101580641,0.025,4327.8,4327.7,15.23905011]
[1757101580843,0.025,4327.8,4327.7,16.18635011]
[1757101581042,0.025,4327.8,4327.7,19.66975011]
[1757101581260,0.025,4327.8,4327.7,19.18445011]
[1757101581457,1e-08,4327.8,4327.7,19.18445011]
[1757101581657,1e-08,4327.8,4327.7,20.09153661]
[1757101582071,0.001,4328.3,4328.2,2.31042927]
[1757101582375,0.001,4328.3,4328.2,17.30314855]
[1757101582688,0.001,4328.3,4328.2,18.16964426]
[1757101583263,1e-08,4328.8,4328.7,2.3101624]
[1757101583488,1e-08,4328.8,4328.7,13.81768517]
[1757101583789,1e-08,4328.8,4328.7,14.70728517]
[1757101583996,1e-08,4328.8,4328.7,16.70903631]
[1757101586094,1e-08,4328.8,4328.7,19.70903631]
[1757101586457,1e-08,4328.8,4328.7,20.19433631]
[1757101588484,1e-08,4328.8,4328.7,20.28689773]
[1757101588690,1e-08,4328.8,4328.7,19.80159773]
[1757101588869,1e-08,4328.8,4328.7,19.33959773]
[1757101589275,1e-08,4328.8,4328.7,19.80159773]
[1757101589666,1e-08,4328.8,4328.7,20.28689773]
[1757101591484,1e-08,4328.8,4328.7,25.60649276]
[1757101592362,0.001,4329.2,4329.0,0.792]
[1757101592585,0.001,4329.2,4329.1,17.13741875]
[1757101592756,0.001,4329.2,4329.1,18.51231875]
[1757101593181,0.001,4329.2,4329.1,18.95731875]
[1757101595789,0.001,4329.2,4329.1,18.47201875]
[1757101597063,0.001,4329.2,4329.1,10.42655985]
[1757101597593,0.001,4329.2,4329.1,11.20095985]
[1757101597791,0.001,4329.2,4329.1,10.73895985]
[1757101598607,0.7504,4329.2,4329.1,10.42555985]
[1757101598899,1.1954,4329.2,4329.1,10.42555985]
[1757101599487,0.7504,4329.2,4329.1,10.42555985]
[1757101600283,1.2243,4329.2,4329.1,10.42555985]
[1757101601173,0.292,4329.2,4329.1,10.42555985]
[1757101602782,0.292,4329.2,4329.1,6.55955985]
[1757101602990,0.7704,4329.2,4329.1,10.42555985]
[1757101603392,0.292,4329.2,4329.1,10.42555985]
[1757101604107,0.001,4329.2,4329.1,10.42555985]
[1757101604311,0.001,4329.2,4329.1,11.19635985]
[1757101604673,0.001,4329.2,4329.1,10.42555985]
[1757101606602,0.3115,4329.2,4329.1,9.73614895]
[1757101606808,1.2638,4329.2,4329.1,16.21520785]
[1757101608287,1.2638,4329.2,4329.1,9.73614895]
[1757101611396,0.3115,4329.2,4329.1,9.73614895]
[1757101611714,0.001,4329.2,4329.1,9.73614895]
[1757101611906,0.3115,4329.2,4329.1,9.73614895]
[1757101613618,0.3115,4329.2,4329.1,9.29114895]
[1757101616108,0.001,4329.2,4329.1,9.60174895]
[1757101618496,0.001,4329.2,4329.1,10.06194895]
[1757101618705,0.001,4329.2,4329.1,12.04302072]
[1757101619651,0.001,4329.2,4329.1,11.58282072]
[1757101619823,0.001,4329.2,4329.1,15.08282072]
[1757101620542,0.001,4329.2,4329.1,15.54302072]
[1757101620899,0.001,4329.2,4329.1,16.02032072]
[1757101621531,0.001,4329.2,4329.1,16.11287378]
[1757101622033,0.001,4329.2,4329.1,16.90487378]
[1757101622619,0.001,4329.2,4329.1,23.38393268]
[1757101625402,0.001,4329.7,4329.6,0.792]
[1757101625627,0.001,4329.7,4329.6,15.1708379]
[1757101625818,0.001,4329.7,4329.6,21.55909925]
[1757101626020,0.001,4329.7,4329.6,25.05909925]
[1757101626222,0.001,4329.7,4329.6,25.15163668]
[1757101627035,0.001,4329.7,4329.6,24.21413668]
[1757101627211,0.3115,4329.7,4329.6,16.63247778]
[1757101627412,0.3115,4329.7,4329.6,23.11153668]
[1757101628257,1.2638,4329.7,4329.6,16.63247778]
[1757101628452,1.2638,4329.7,4329.6,14.93047778]
[1757101628757,1.2638,4329.7,4329.6,14.83794035]
[1757101631043,0.7899,4329.7,4329.6,14.83794035]
[1757101631414,0.3115,4329.7,4329.6,14.83794035]
[1757101631848,0.001,4329.7,4329.6,21.31699925]
[1757101633310,0.2992,4329.7,4329.6,21.31699925]
[1757101634010,0.001,4329.7,4329.6,21.31699925]
[1757101634818,0.2992,4329.7,4329.6,14.83794035]
[1757101635146,1.1929,4329.7,4329.6,12.78988218]
[1757101635344,0.7496,4329.7,4329.6,12.78988218]
[1757101635645,1.1929,4329.7,4329.6,12.78988218]
[1757101636828,1.1929,4329.7,4329.6,9.28988218]
[1757101637948,0.7496,4329.7,4329.6,9.28988218]
[1757101638646,1.1929,4329.7,4329.3,2.30982659]
[1757101638849,0.8937,4329.6,4329.4,3.864]
[1757101639148,1.1919,4329.5,4329.4,6.17378643]
[1757101640147,1.1919,4329.5,4328.9,5.81000572]
[1757101640446,0.8937,4329.4,4329.2,2.30989559]
[1757101640646,0.8937,4329.3,4329.2,6.17387243]
[1757101640852,1.1919,4329.3,4329.2,6.17387243]
[1757101641019,1.1919,4329.3,4328.8,0.004]
[1757101641430,2.30992876,4329.2,4328.8,0.004]
[1757101641849,0.2982,4328.9,4328.8,0.004]
[1757101642051,0.2982,4328.9,4328.8,2.31410903]
[1757101642352,1.1919,4328.9,4328.8,2.31410903]
[1757101642651,1.1919,4328.9,4328.8,0.004]
[1757101645646,9.98101457,4328.9,4328.8,0.004]
[1757101646152,3.50195567,4328.9,4328.8,0.004]
[1757101648029,4.29395567,4328.9,4328.8,0.004]
[1757101648955,8.15795567,4328.9,4328.8,0.004]
[1757101651268,8.15795567,4328.9,4328.8,0.004]
[1757101652253,14.63701457,4328.9,4328.8,0.004]
[1757101653454,15.79420984,4328.9,4328.8,0.004]
[1757101655968,6.92365567,4328.9,4328.8,0.004]
[1757101656467,7.36695567,4328.9,4328.8,0.004]
[1757101657874,6.92365567,4328.9,4328.8,0.004]
[1757101658042,6.47325567,4328.9,4328.8,0.004]
[1757101658438,7.36695567,4328.9,4328.8,0.004]
[1757101658745,6.92365567,4328.9,4328.8,0.004]
[1757101659350,3.865,4328.9,4328.8,0.3181]
[1757101660581,6.17505567,4328.9,4328.8,0.3181]
[1757101660958,6.17505567,4328.9,4328.8,0.004]
[1757101661183,0.1152,4328.9,4328.8,5.4514]
[1757101661378,3.9802,4328.9,4328.8,5.4514]
[1757101662270,0.1152,4328.9,4328.8,8.76869043]
[1757101662448,3.865,4329.1,4328.9,2.31001983]
[1757101662653,0.1152,4329.3,4329.0,1.2474]
[1757101662859,3.865,4329.5,4329.1,6.50994895]
[1757101663151,3.865,4329.5,4329.4,2.62388888]
[1757101663152,0.1152,4329.5,4329.4,2.62388888]
[1757101663396,0.1152,4329.5,4329.4,3.55718888]
[1757101664077,0.1152,4329.5,4329.4,1.2474]
[1757101664287,0.1152,4329.5,4329.4,3.55718888]
[1757101664595,0.1152,4329.5,4329.4,1.2474]
[1757101664950,0.1152,4329.5,4329.4,0.7763]
[1757101665184,0.1152,4329.5,4329.4,0.3141]
[1757101665953,0.1152,4329.5,4329.4,0.7763]
[1757101667560,0.1152,4329.5,4329.4,3.55718888]
[1757101668168,0.1152,4329.5,4329.4,0.7763]
[1757101668483,0.1152,4329.5,4329.4,0.3141]
[1757101668872,0.1152,4329.5,4329.4,4.5141]
[1757101670069,1.376,4329.5,4329.4,4.2]
[1757101670267,0.9238,4329.5,4329.4,4.2]
[1757101670467,0.1152,4329.5,4329.4,4.2]
[1757101670671,0.1152,4329.5,4329.4,4.9763]
[1757101670866,0.1152,4329.6,4329.4,7.75715175]
[1757101671058,0.1152,4329.6,4329.5,0.4622]
[1757101671490,3.865,4329.7,4329.5,4.56383954]
[1757101671491,0.001,4329.7,4329.5,4.56383954]
[1757101671695,0.001,4329.7,4329.6,5.30968218]
[1757101671995,0.001,4329.7,4329.6,6.24298218]
[1757101672195,0.001,4329.7,4329.6,6.55708218]
[1757101673171,0.001,4329.7,4329.6,6.6496421]
[1757101673857,0.001,4329.7,4329.6,6.55708218]
[1757101674392,0.001,4329.7,4329.6,7.83941994]
[1757101681485,0.001,4329.7,4329.6,8.0471775]
[1757101683798,0.025,4329.8,4329.7,9.50862884]
[1757101683970,0.025,4329.8,4329.7,14.30492884]
[1757101684170,0.025,4329.8,4329.7,14.61902884]
[1757101684384,0.025,4329.8,4329.7,16.68262727]
[1757101684584,0.025,4329.8,4329.7,19.81297819]
[1757101684786,0.025,4329.8,4329.7,19.34187819]
[1757101685130,0.025,4329.8,4329.7,18.93522727]
[1757101685310,0.025,4329.8,4329.7,15.74932727]
[1757101685501,0.025,4329.8,4329.7,16.21152727]
[1757101686109,0.025,4329.8,4329.7,16.68262727]
[1757101687283,1e-08,4329.8,4329.7,24.75982727]
[1757101687488,1e-08,4329.8,4329.7,17.58982727]
[1757101687688,1e-08,4329.8,4329.7,21.08982727]
[1757101692620,0.001,4330.4,4330.3,6.50630881]
[1757101692787,0.001,4330.4,4330.3,14.01993969]
[1757101693116,0.001,4330.4,4330.3,14.90573969]
[1757101693308,0.001,4330.4,4330.3,18.40573969]
[1757101694585,0.001,4330.4,4330.3,18.86813969]
[1757101696323,0.001,4330.4,4330.3,26.03813969]
[1757101698302,0.4943,4331.5,4330.7,2.30909552]
[1757101698506,0.4943,4331.5,4330.7,10.92747154]
[1757101698729,0.4943,4331.5,4330.7,11.81327154]
[1757101699042,4.00903801,4332.7,4331.7,2.30856245]
[1757101699043,0.4943,4331.9,4331.7,2.30856245]
[1757101699548,0.1152,4332.3,4331.7,2.30856245]
[1757101699549,1.2669,4331.8,4331.7,2.30856245]
[1757101699729,1.2669,4331.8,4331.7,2.42376245]
[1757101701835,1.2669,4331.8,4331.6,6.17059486]
[1757101702035,0.9341,4331.7,4331.4,2.30872235]
[1757101702234,0.025,4331.8,4331.4,2.30872235]
[1757101702439,0.3078,4331.5,4331.4,2.30872235]
[1757101702971,1.2419,4331.5,4331.4,2.30872235]
[1757101704442,1.2419,4331.5,4331.4,6.50572234]
[1757101704927,2.30925423,4332.3,4331.4,6.50572234]
[1757101704928,0.001,4332.3,4332.2,2.30829601]
[1757101705131,0.001,4332.3,4332.2,6.52517897]
[1757101705345,0.001,4332.3,4332.2,6.07889601]
[1757101705552,0.001,4332.3,4332.2,5.30829601]
[1757101705759,0.001,4332.3,4332.2,9.50209601]
[1757101706265,0.001,4332.3,4332.2,18.76722127]
[1757101706437,0.001,4332.3,4332.2,19.32852168]
[1757101706761,0.001,4332.3,4332.2,19.79092168]
[1757101712063,0.001,4332.3,4332.2,19.32852168]
[1757101713196,0.001,4332.3,4332.2,19.79092168]
[1757101713373,0.001,4332.3,4332.2,19.32852168]
[1757101713559,0.001,4332.3,4332.2,18.85972168]
[1757101714081,0.001,4332.3,4332.2,18.85872168]
[1757101714593,0.001,4332.3,4332.2,10.91966751]
[1757101714970,0.001,4332.3,4332.2,11.03486751]
[1757101715379,0.001,4332.3,4332.2,11.33666751]
[1757101715596,0.001,4332.3,4332.2,17.80703972]
[1757101715959,0.001,4332.3,4332.2,18.26943972]
[1757101716280,0.001,4332.3,4332.2,18.73823972]
[1757101716961,0.001,4332.3,4332.2,18.27583972]
[1757101719487,0.001,4332.3,4332.2,18.27383972]
[1757101721079,0.001,4332.3,4332.2,18.73043972]
[1757101722177,0.025,4332.8,4332.2,18.73043972]
[1757101722178,0.025,4332.8,4332.7,9.4724179]
[1757101722382,0.025,4332.8,4332.7,13.3584179]
[1757101722609,1.259,4332.8,4332.7,13.4736179]
[1757101722797,1.259,4332.8,4332.7,13.9457179]
[1757101725608,0.7869,4332.8,4332.7,13.9457179]
[1757101726613,0.025,4332.8,4332.7,16.10531223]
[1757101727314,0.025,4332.8,4332.7,22.57568444]
[1757101727478,0.025,4333.8,4333.3,2.30771005]
[1757101727479,0.4673,4333.7,4333.3,2.30771005]
[1757101727680,0.025,4333.8,4333.7,2.30749705]
[1757101727899,0.025,4333.8,4333.7,6.19049705]
[1757101728115,0.3196,4333.8,4333.7,6.19049705]
[1757101728418,1.259,4333.8,4333.7,6.19049705]
[1757101731095,1.259,4333.8,4333.7,10.32888532]
[1757101731706,1.259,4333.8,4333.7,8.02138827]
[1757101732518,0.025,4333.8,4333.7,10.63228532]
[1757101732691,0.025,4333.8,4333.7,13.63228532]
[1757101733086,0.025,4333.8,4333.7,14.09958532]
[1757101735409,0.3196,4333.8,4333.7,13.79618532]
[1757101735614,0.025,4333.8,4333.7,15.6833921]
[1757101736422,0.025,4333.8,4333.7,11.54500383]
[1757101737231,0.025,4333.8,4333.7,11.84840383]
[1757101739321,0.025,4333.8,4333.7,11.54500383]
[1757101740022,0.025,4333.8,4333.7,15.04500383]
[1757101740421,0.025,4333.8,4333.7,15.34840383]
[1757101740619,0.025,4333.8,4333.7,15.80910383]
[1757101740831,0.025,4333.8,4333.7,15.34840383]
[1757101741904,0.025,4333.8,4333.7,12.34840383]
[1757101742104,0.025,4333.8,4333.7,15.34840383]
[1757101742304,0.026,4333.8,4333.7,15.34840383]
[1757101742525,0.026,4333.8,4333.7,15.46360383]
[1757101744437,0.3206,4333.8,4333.7,11.27720383]
[1757101744622,1.26,4333.8,4333.7,15.15120383]
[1757101744822,1.26,4333.8,4333.7,13.26399705]
[1757101745007,1.26,4333.8,4333.7,12.79669705]
[1757101745641,1.26,4333.8,4333.7,9.79669705]
[1757101745931,1.26,4333.8,4333.7,12.79669705]
[1757101746303,1.26,4333.8,4333.7,8.92269705]
[1757101746505,1.26,4333.8,4333.7,12.79669705]
[1757101746714,1.26,4333.8,4333.7,5.92269705]
[1757101746715,0.7879,4333.8,4333.7,5.92269705]
[1757101746938,7.73037221,4333.8,4333.4,3.874]
[1757101747155,7.73037221,4333.8,4332.7,1.85619433]
[1757101747156,0.9394,4333.7,4333.6,2.30754665]
[1757101747649,0.7619,4333.7,4333.6,2.30754665]
[1757101747820,1.234,4333.7,4333.6,2.30754665]
[1757101748235,0.2946,4333.7,4333.6,6.18154665]
[1757101748629,0.7619,4333.7,4333.6,6.18154665]
[1757101749011,1.234,4333.7,4333.6,6.18154665]
[1757101749620,1.234,4333.7,4333.6,6.1815503]
[1757101750841,1.234,4333.7,4333.6,3.874]
[1757101751054,1.234,4333.7,4333.2,2.42292113]
[1757101751244,1.234,4333.7,4333.4,2.30761737]
[1757101751445,0.9396,4333.6,4333.4,2.3076568]
[1757101751623,1.252,4333.5,4333.4,2.3076568]
[1757101751824,1.252,4333.5,4333.4,6.44604507]
[1757101752323,1.252,4333.5,4333.4,4.13838827]
[1757101752520,10.02997576,4333.5,4333.4,4.13838827]
[1757101752721,10.02997576,4333.5,4332.9,0.69364082]
[1757101752722,7.72237221,4333.5,4332.9,0.69364082]
[1757101753031,7.72237221,4333.5,4332.6,0.004]
[1757101753032,2.30802963,4332.7,4332.6,0.004]
[1757101753415,3.56002963,4332.7,4332.6,0.004]
[1757101754365,10.03040184,4332.7,4332.6,0.004]
[1757101754513,3.56002963,4332.7,4332.6,0.004]
[1757101756044,13.90640184,4332.7,4332.6,0.004]
[1757101757855,14.69840184,4332.7,4332.6,0.004]
[1757101758010,8.22802963,4332.7,4332.6,0.004]
[1757101758556,4.35202963,4332.7,4332.6,0.004]
[1757101758859,14.69740184,4332.7,4332.6,0.004]
[1757101763665,0.8083,4332.7,4332.6,0.004]
[1757101763867,3.875,4332.7,4332.6,0.004]
[1757101764169,6.18302963,4332.7,4332.6,0.004]
[1757101764374,6.49542963,4332.7,4332.6,0.004]
[1757101765954,6.99132963,4332.7,4332.6,0.004]
[1757101766453,6.49542963,4332.7,4332.6,0.004]
[1757101767360,3.875,4332.7,4332.6,0.3032]
[1757101767518,6.18302963,4332.7,4332.6,0.3032]
[1757101768958,6.18302963,4332.7,4332.6,0.004]
[1757101769558,6.49542963,4332.7,4332.6,0.004]
[1757101769844,6.99132963,4332.7,4332.6,0.004]
[1757101770023,7.43502963,4332.7,4332.6,0.004]
[1757101771135,3.875,4332.7,4332.6,0.004]
[1757101771351,3.875,4332.7,4332.6,0.3032]
[1757101771868,6.18302963,4332.7,4332.6,0.3032]
[1757101772057,2.30799218,4332.8,4332.6,0.3032]
[1757101772260,3.9862,4332.7,4332.6,0.7586]
[1757101772630,3.9862,4332.7,4332.6,4.89698827]
[1757101772835,1.7,4333.1,4332.6,5.35138827]
[1757101773027,0.001,4333.2,4333.1,2.30781657]
[1757101773434,0.001,4333.2,4333.1,3.51681657]
[1757101774036,0.001,4333.2,4333.1,6.51681657]
[1757101774261,0.001,4333.2,4333.1,6.63201657]
[1757101774445,0.001,4333.2,4333.1,8.89992454]
[1757101775065,0.001,4333.2,4333.1,9.59356696]
[1757101777165,0.001,4333.2,4333.1,13.09356696]
[1757101780336,0.001,4333.2,4333.1,12.63916696]
[1757101780567,0.001,4333.2,4333.1,12.18376696]
[1757101780775,0.001,4333.2,4333.1,9.87595039]
[1757101780934,0.3136,4333.2,4333.1,5.80781657]
[1757101781134,0.001,4333.2,4333.1,2.59581657]
[1757101781583,0.001,4333.2,4333.1,3.02971657]
[1757101782509,0.001,4333.2,4333.1,3.49111657]
[1757101782890,0.001,4333.2,4333.1,5.50354579]
[1757101783092,0.001,4333.2,4333.1,5.61874579]
[1757101783390,0.001,4333.2,4333.1,5.73394579]
[1757101784306,0.001,4333.2,4333.1,8.73394579]
[1757101784521,0.001,4333.2,4333.1,12.87233406]
[1757101785504,0.001,4333.2,4333.1,16.37233406]
[1757101787105,0.001,4333.2,4333.1,20.24233406]
[1757101790312,0.025,4333.8,4333.7,2.30749705]
[1757101790540,0.025,4333.8,4333.7,13.31388532]
[1757101790686,0.025,4333.8,4333.7,13.71708532]
[1757101790888,0.025,4333.8,4333.7,17.21708532]
[1757101791082,0.025,4333.8,4333.7,18.12808532]
[1757101791279,0.025,4333.8,4333.7,20.1716497]
[1757101792695,0.025,4333.8,4333.7,20.6330497]
[1757101793196,0.025,4333.8,4333.7,20.1716497]
[1757101794094,0.025,4333.8,4333.7,19.2606497]
[1757101794312,0.025,4333.8,4333.7,19.6945497]
[1757101795026,0.025,4333.8,4333.7,19.2606497]
[1757101795225,0.3376,4333.8,4333.7,15.1036497]
[1757101795429,0.3376,4333.8,4333.7,16.92708532]
[1757101795596,0.8147,4333.8,4333.7,13.42708532]
[1757101796826,0.3376,4333.8,4333.7,13.42708532]
[1757101797524,0.025,4333.8,4333.7,13.71508532]
[1757101798091,0.3376,4333.8,4333.7,13.31088532]
[1757101798301,0.025,4333.8,4333.7,13.59888532]
[1757101798519,0.025,4333.8,4333.7,15.5510497]
[1757101798721,0.025,4333.8,4333.7,15.9849497]
[1757101799105,0.025,4333.8,4333.7,15.5510497]
[1757101799517,0.025,4333.8,4333.7,19.0510497]
[1757101800222,0.025,4333.8,4333.6,0.1152]
[1757101800223,0.8147,4333.8,4333.6,0.1152]
[1757101800534,0.9396,4333.7,4333.3,2.30770207]
[1757101800714,0.025,4333.8,4333.7,2.30749705]
[1757101801054,0.025,4333.8,4333.7,10.35879705]
[1757101801350,0.025,4333.8,4333.7,11.62543262]
[1757101801702,0.025,4333.8,4333.7,14.23013262]
[1757101801936,0.025,4333.8,4333.7,15.12543262]
[1757101803130,0.026,4333.8,4333.7,15.12543262]
[1757101803644,0.026,4333.8,4333.7,14.66703262]
[1757101803834,0.026,4333.8,4333.7,14.23313262]
[1757101804212,0.026,4333.8,4333.7,12.67849705]
[1757101804213,0.3386,4333.8,4333.7,12.67849705]
[1757101804408,0.8157,4333.8,4333.7,12.67849705]
[1757101804822,0.8157,4333.8,4333.7,9.67849705]
[1757101805137,1.2782,4333.8,4333.7,6.17849705]
[1757101805433,1.2782,4333.8,4333.3,2.30768607]
[1757101805599,0.9396,4333.7,4333.1,6.18277822]
[1757101805800,0.3126,4333.2,4333.1,0.004]
[1757101806022,2.62036331,4333.2,4333.1,0.004]
[1757101806420,3.55996331,4333.2,4333.1,0.004]
[1757101806599,4.35196331,4333.2,4333.1,0.004]
[1757101807011,7.43496331,4333.2,4333.1,0.004]
[1757101807210,8.22696331,4333.2,4333.1,0.004]
[1757101807415,3.10002963,4332.7,4332.6,0.004]
[1757101807610,15.41395408,4332.7,4332.6,0.004]
[1757101807809,16.66615408,4332.7,4332.6,0.004]
[1757101808225,3.10024273,4332.3,4332.2,0.004]
[1757101808532,17.59216718,4332.3,4332.2,0.004]
[1757101808732,18.84436718,4332.3,4332.2,0.004]
[1757101808941,18.84436718,4332.3,4331.8,0.025]
[1757101808942,0.792,4332.1,4331.8,0.025]
[1757101809104,12.92238032,4331.9,4331.8,0.025]
[1757101809299,13.23498032,4331.9,4331.8,0.025]
[1757101809531,6.56215587,4331.9,4331.8,0.025]
[1757101809729,10.44115587,4331.9,4331.8,0.025]
[1757101810444,2.30870723,4331.5,4330.8,0.025]
[1757101810740,15.40019883,4331.3,4330.8,0.025]
[1757101810941,15.70559883,4331.3,4330.8,0.025]
[1757101811246,21.32169883,4331.3,4330.8,0.025]
[1757101811536,3.10098889,4330.9,4330.8,1e-08]
[1757101811739,3.0,4330.4,4330.1,1e-08]
[1757101811909,19.49818533,4330.2,4330.1,1e-08]
[1757101812111,25.08318533,4330.2,4330.1,1e-08]
[1757101812433,12.14186215,4330.2,4330.1,1e-08]
[1757101812635,2.0054,4330.2,4330.1,1e-08]
[1757101812836,5.8914,4330.2,4330.1,1e-08]
[1757101813136,5.586,4330.2,4330.1,1e-08]
[1757101813434,1.7,4330.2,4330.1,2.59551549]
[1757101813624,3.894,4330.5,4330.3,2.30926102]
[1757101813828,3.894,4330.5,4330.4,0.726]
[1757101814237,3.894,4330.5,4330.1,1e-08]
[1757101814812,3.894,4330.5,4330.4,0.2861]
[1757101815026,3.894,4330.5,4330.4,2.59535549]
[1757101815231,3.894,4330.5,4330.4,3.03525549]
[1757101815429,3.894,4330.5,4330.4,0.726]
[1757101815631,3.894,4330.5,4330.4,0.2861]
[1757101816745,4.1994,4330.5,4330.1,1e-08]
[1757101817240,3.894,4330.5,4330.2,4.13738827]
[1757101817441,0.4668,4330.4,4330.2,4.13738827]
[1757101817678,0.1152,4330.2,4330.1,1e-08]
[1757101818311,4.0082,4330.2,4330.1,1e-08]
[1757101819544,6.78436215,4330.2,4330.1,1e-08]
[1757101819848,4.475,4330.2,4330.1,1e-08]
[1757101820049,4.0082,4330.2,4330.1,1e-08]
[1757101821052,4.0092,4330.2,4330.1,1e-08]
[1757101821262,0.1152,4330.2,4330.1,1e-08]
[1757101821543,1.701,4331.3,4330.4,2.30925549]
[1757101821544,1.66,4330.5,4330.4,2.30925549]
[1757101821757,1.701,4331.3,4330.6,2.309118]
[1757101822043,1.701,4331.3,4330.7,2.79459268]
[1757101822249,3.896,4331.4,4330.8,2.30901133]
[1757101822482,3.896,4331.4,4330.9,2.30898889]
[1757101822947,1.701,4332.5,4331.3,0.2861]
[1757101823116,3.899,4332.2,4331.4,2.30872235]
[1757101823316,3.899,4332.2,4331.7,2.30856245]
[1757101823553,3.899,4332.2,4331.7,2.59466245]
[1757101823845,3.899,4332.2,4331.7,3.08016245]
[1757101824032,3.899,4332.2,4331.7,3.52006245]
[1757101824230,3.899,4332.2,4331.7,3.03456245]
[1757101824749,3.899,4332.3,4331.7,3.52006245]
[1757101825844,3.899,4332.3,4331.7,7.45293128]
[1757101826010,1.701,4332.5,4331.7,7.45293128]
[1757101826443,0.025,4332.8,4331.7,11.35093128]
[1757101826813,1e-08,4331.8,4331.7,15.64293128]
[1757101831452,1e-08,4331.8,4331.7,15.75813128]
[1757101832722,1e-08,4331.8,4331.7,20.50351955]
[1757101835455,1e-08,4331.8,4331.7,37.74764175]
[1757101837952,0.4668,4333.4,4333.0,3.0]
[1757101838154,0.4668,4333.4,4333.2,2.30776331]
[1757101838468,0.4668,4333.4,4333.1,8.00438826]
[1757101838469,0.026,4333.8,4333.7,2.30749705]
[1757101838861,0.9671,4333.8,4333.7,2.30749705]
[1757101839060,1.2725,4333.8,4333.3,7.391]
[1757101839383,1.2725,4333.8,4333.5,2.30760355]
[1757101839384,0.9416,4333.7,4333.5,2.30760355]
[1757101839683,1.2301,4333.6,4333.5,2.30760355]
[1757101843789,0.026,4333.8,4333.7,2.30749705]
[1757101843992,0.026,4333.8,4333.7,6.46117966]
[1757101844150,0.026,4333.8,4333.7,6.75347966]
[1757101844479,0.026,4333.8,4333.7,6.46117966]
[1757101844844,0.026,4333.8,4333.7,6.75347966]
[1757101845253,0.3145,4333.8,4333.7,6.19649705]
[1757101845457,0.7933,4333.8,4333.7,9.69649705]
[1757101845972,1.2561,4333.8,4333.7,9.69649705]
[1757101846176,1.2561,4333.8,4333.7,5.80749705]
[1757101848059,1.2561,4333.8,4333.6,4.0032]
[1757101848398,0.9416,4333.7,4333.6,2.4227503]
[1757101848557,1.2301,4333.7,4333.6,5.9227503]
[1757101848880,1.2301,4333.7,4333.6,2.4227503]
[1757101849785,1.2301,4333.7,4333.6,6.53513856]
[1757101850395,1.2301,4333.7,4333.6,4.22758826]
[1757101851093,1.2301,4333.7,4333.6,4.11238826]
[1757101853050,0.2885,4333.7,4333.6,4.11238826]
[1757101853490,1.2301,4333.7,4333.6,4.11238826]
[1757101853701,1.3453,4333.7,4333.6,4.11238826]
[1757101855698,1.3453,4333.7,4333.4,4.11238826]
[1757101855920,0.2885,4333.7,4333.4,4.11238826]
[1757101856100,2.30760355,4333.5,4333.4,4.11238826]
[1757101856267,3.53770355,4333.5,4333.4,4.11238826]
[1757101857289,1.2301,4333.5,4333.4,4.11238826]
[1757101858569,0.7673,4333.5,4332.8,0.004]
[1757101858854,0.1152,4333.2,4332.9,2.3079231]
[1757101859057,0.1152,4333.2,4332.8,0.004]
[1757101859058,0.1152,4333.2,4333.1,2.30781657]
[1757101859285,0.1152,4333.2,4333.0,2.30785979]
[1757101859493,0.1152,4333.2,4332.8,2.78266338]
[1757101859660,0.1152,4333.2,4333.0,2.30784325]
[1757101860164,0.1152,4333.2,4332.9,2.30790995]
[1757101860358,0.1152,4333.2,4332.8,0.4747]
[1757101860359,1.2301,4333.1,4332.8,0.004]
[1757101860758,0.4628,4333.0,4332.8,0.004]
[1757101860996,2.3079231,4332.9,4332.8,0.004]
[1757101861196,3.0752231,4332.9,4332.8,0.004]
[1757101861499,3.5380231,4332.9,4332.8,0.004]
[1757101862381,1.2301,4332.9,4332.8,0.004]
[1757101862581,3.5380231,4332.9,4332.8,0.004]
[1757101862899,7.4240231,4332.9,4332.8,0.004]
[1757101864193,4.6523,4332.9,4332.8,0.004]
[1757101864361,6.9602231,4332.9,4332.8,0.004]
[1757101864557,7.4230231,4332.9,4332.8,0.004]
[1757101865263,5.1151,4332.9,4332.8,0.004]
[1757101865472,7.4230231,4332.9,4332.8,0.004]
[1757101865900,5.1151,4332.9,4332.8,0.004]
[1757101866260,7.4230231,4332.9,4332.8,0.004]
[1757101868506,8.2150231,4332.9,4332.8,0.004]
[1757101868697,8.2150231,4332.9,4332.3,0.004]
[1757101868698,0.792,4332.6,4332.3,0.004]
[1757101868901,20.34509582,4332.4,4332.3,0.004]
[1757101869197,20.63359582,4332.4,4332.3,0.004]
[1757101869361,21.58289582,4332.4,4332.3,0.004]
[1757101871380,25.46689582,4332.4,4332.3,0.004]
[1757101873268,25.46589582,4332.4,4332.3,0.004]
[1757101876207,25.46489582,4332.4,4332.3,0.004]